fUST/lending_fUST_20241214
["ID","MTS","AMOUNT","RATE_DAILY","PERIOD"]
[345244290,1734113439094,-6099.72851847,0.00029,2]
[345244291,1734113439105,-1262.28433655,0.00029,2]
[345244372,1734113440338,-500.0,0.00027397,7]
[345244374,1734113440348,-500.0,0.00027397,7]
[345244376,1734113440357,-9.1,0.00027397,7]
[345244382,1734113440401,-490.40668275,0.00027397,7]
[345244384,1734113440413,-0.49331725,0.00027397,7]
[345244386,1734113440422,-429.78785873,0.00027397,7]
[345244490,1734113443316,-361.95984905,0.00027273,2]
[345244617,1734113446312,-138.04015095,0.00027273,2]
[345244619,1734113446324,-70.21214127,0.00027397,7]
[345244621,1734113446334,-500.0,0.00027397,7]
[345244623,1734113446344,-544.52,0.00027397,7]
[345244626,1734113446353,-500.0,0.00027397,7]
[345244627,1734113446362,-500.0,0.00027397,7]
[345244630,1734113446372,-500.0,0.00027397,7]
[345244631,1734113446381,-500.0,0.00027397,7]
[345244633,1734113446391,-500.0,0.00027397,7]
[345244635,1734113446400,-477.22770578,0.00027397,7]
[345244638,1734113446411,-22.77229422,0.00027397,7]
[345244639,1734113446420,-500.0,0.00027397,7]
[345244641,1734113446430,-500.0,0.00027397,7]
[345244643,1734113446439,-500.0,0.00027397,7]
[345244645,1734113446448,-636.3,0.00027671,7]
[345244647,1734113446458,-500.0,0.00027671,7]
[345244649,1734113446468,-544.52,0.00027671,7]
[345244651,1734113446482,-500.0,0.00027671,7]
[345244653,1734113446491,-500.0,0.00027671,7]
[345244655,1734113446500,-500.0,0.00027671,7]
[345244657,1734113446509,-500.0,0.00027671,7]
[345244659,1734113446519,-835.85,0.0002776,15]
[345244661,1734113446528,-500.0,0.00027945,7]
[345244663,1734113446537,-544.52,0.00027945,7]
[345244665,1734113446546,-500.0,0.00027945,7]
[345244667,1734113446556,-500.0,0.00027945,7]
[345244669,1734113446565,-500.0,0.00028219,7]
[345244671,1734113446575,-544.52,0.00028219,7]
[345244673,1734113446584,-500.0,0.00028219,7]
[345244675,1734113446594,-616.95,0.00028219,7]
[345244677,1734113446603,-500.0,0.00028493,7]
[345244679,1734113446612,-544.52,0.00028493,7]
[345244681,1734113446622,-500.0,0.00028493,7]
[345244683,1734113446631,-500.0,0.00028767,7]
[345244685,1734113446640,-161.8176393,0.00028767,7]
[345244687,1734113446652,-382.7023607,0.00028767,7]
[345244689,1734113446662,-36.82534011,0.00028767,7]
[345244691,1734113446674,-463.17465989,0.00028767,7]
[345244693,1734113446684,-776.62963152,0.00028785,2]
[345244722,1734113897661,226.825619,0.00013973,2]
[345244723,1734114497550,532.54773246,0.000125,2]
[345244724,1734114508097,2599.22414862,0.0002,2]
[345244726,1734114518179,8663.84513523,0.0001999,2]
[345244727,1734114518208,8811.80358578,0.0001999,2]
[345245386,1734114640603,-226.825619,0.00020447,2]
[345245387,1734114640612,-142.14484907,0.00020447,2]
[345245465,1734114644095,-12.92338095,0.00020447,2]
[345245467,1734114644104,-156.06867021,0.00021469,2]
[345245469,1734114644114,-300.0,0.00021526,2]
[345245471,1734114644123,-300.0,0.00021526,2]
[345245473,1734114644133,-867.9263791,0.00021527,2]
[345245475,1734114644145,-313.21851296,0.00021527,2]
[345245504,1734114646531,-280.7778225,0.00020997,2]
[345245505,1734114646542,-24586.78148704,0.00021527,2]
[345245506,1734114646551,-584.27481225,0.00021664,2]
[345245507,1734114646561,-1284.0897053,0.00021764,2]
[345245508,1734114646571,-152.0,0.00022314,2]
[345245509,1734114646581,-162.76831872,0.00022492,2]
[345245510,1734114646591,-2631.84771693,0.00022541,2]
[345245511,1734114646600,-803.64483,0.00022541,2]
[345245512,1734114646610,-209.34408,0.00022641,2]
[345245513,1734114646619,-192.0,0.00022816,2]
[345245514,1734114646628,-265.412275,0.00023288,2]
[345245515,1734114646639,-420.0,0.00023403,2]
[345245516,1734114646651,-172.0917906,0.00023431,2]
[345245517,1734114646660,-178.827236,0.00023661,2]
[345245518,1734114646670,-420.0,0.00023678,2]
[345245519,1734114646679,-178.827236,0.00024015,2]
[345245520,1734114646689,-1835.3155764,0.0002414,2]
[345245521,1734114646699,-265.412275,0.00024149,2]
[345245522,1734114646709,-178.827236,0.00024369,2]
[345245523,1734114646718,-178.827236,0.00024723,2]
[345245524,1734114646727,-188.438,0.00024834,8]
[345245525,1734114646736,-3427.84767697,0.00025,2]
[345245526,1734114646746,-832.2607688,0.00025,2]
[345245527,1734114646756,-265.412275,0.00025011,2]
[345245528,1734114646765,-178.827236,0.00025077,2]
[345245529,1734114646774,-250.0,0.00025146,2]
[345245530,1734114646784,-184.7619865,0.00025186,2]
[345245531,1734114646794,-178.827236,0.0002543,2]
[345245532,1734114646803,-587.0,0.00025443,2]
[345245533,1734114646812,-6879.2462206,0.000256,2]
[345245534,1734114646823,-1511.90882932,0.00025601,120]
[345245535,1734114646833,-682.82505215,0.00025816,2]
[345245536,1734114646842,-265.412275,0.00025873,2]
[345245537,1734114646852,-2049.57647401,0.000259,2]
[345245538,1734114646861,-11305.97809374,0.00025999,5]
[345245539,1734114646871,-265.04099346,0.00025999,2]
[345245540,1734114646880,-356.80981217,0.00025999,2]
[345245541,1734114646892,-500.0,0.00025999,2]
[345245542,1734114646902,-500.0,0.00025999,2]
[345245543,1734114646911,-500.0,0.00025999,2]
[345245544,1734114646921,-215.16844114,0.00025999,2]
[345245545,1734114646930,-500.0,0.00025999,2]
[345245546,1734114646940,-500.0,0.00025999,2]
[345245547,1734114646950,-500.0,0.00025999,2]
[345245548,1734114646959,-500.0,0.00025999,2]
[345245549,1734114646969,-500.0,0.00025999,2]
[345245550,1734114646979,-500.0,0.00025999,2]
[345245551,1734114646987,-500.0,0.00025999,2]
[345245552,1734114646997,-500.0,0.00025999,2]
[345245553,1734114647006,-500.0,0.00025999,2]
[345245554,1734114647015,-500.0,0.00025999,2]
[345245555,1734114647024,-500.0,0.00025999,2]
[345245556,1734114647034,-333.50307925,0.00025999,2]
[345245557,1734114647044,-500.0,0.00025999,2]
[345245558,1734114647053,-500.0,0.00025999,2]
[345245559,1734114647063,-210.51696141,0.00025999,2]
[345245560,1734114647072,-500.0,0.00025999,2]
[345245561,1734114647081,-500.0,0.00025999,2]
[345245562,1734114647102,-500.0,0.00025999,2]
[345245563,1734114647114,-500.0,0.00025999,2]
[345245564,1734114647124,-500.0,0.00025999,2]
[345245565,1734114647133,-500.0,0.00025999,2]
[345245566,1734114647146,-500.0,0.00025999,2]
[345245567,1734114647156,-500.0,0.00025999,2]
[345245568,1734114647166,-500.0,0.00025999,2]
[345245569,1734114647176,-500.0,0.00025999,2]
[345245570,1734114647186,-606.15886151,0.00025999,2]
[345245571,1734114647199,-500.0,0.00025999,2]
[345245572,1734114647209,-500.0,0.00025999,2]
[345245573,1734114647219,-500.0,0.00025999,2]
[345245574,1734114647229,-500.0,0.00025999,2]
[345245575,1734114647239,-500.0,0.00025999,2]
[345245576,1734114647250,-500.0,0.00025999,2]
[345245577,1734114647265,-500.0,0.00025999,2]
[345245578,1734114647280,-500.0,0.00025999,2]
[345245579,1734114647290,-500.0,0.00025999,2]
[345245580,1734114647300,-500.0,0.00025999,2]
[345245581,1734114647310,-500.0,0.00025999,2]
[345245582,1734114647320,-500.0,0.00025999,2]
[345245583,1734114647330,-500.0,0.00025999,2]
[345245584,1734114647340,-500.0,0.00025999,2]
[345245585,1734114647350,-500.0,0.00025999,2]
[345245586,1734114647360,-500.0,0.00025999,2]
[345245587,1734114647370,-500.0,0.00025999,2]
[345245588,1734114647380,-500.0,0.00025999,2]
[345245589,1734114647390,-500.0,0.00025999,2]
[345245590,1734114647400,-500.0,0.00025999,2]
[345245591,1734114647410,-500.0,0.00025999,2]
[345245592,1734114647419,-500.0,0.00025999,2]
[345245593,1734114647429,-500.0,0.00025999,2]
[345245594,1734114647439,-500.0,0.00025999,2]
[345245595,1734114647449,-500.0,0.00025999,2]
[345245596,1734114647459,-500.0,0.00025999,2]
[345245597,1734114647468,-500.0,0.00025999,2]
[345245598,1734114647478,-500.0,0.00025999,2]
[345245599,1734114647488,-463.25045176,0.00025999,2]
[345245600,1734114647497,-500.0,0.00025999,2]
[345245601,1734114647507,-500.0,0.00025999,2]
[345245602,1734114647516,-500.0,0.00025999,2]
[345245603,1734114647526,-500.0,0.00025999,2]
[345245604,1734114647535,-500.0,0.00025999,2]
[345245605,1734114647545,-633.9305056,0.00025999,2]
[345245606,1734114647555,-500.0,0.00025999,2]
[345245607,1734114647565,-500.0,0.00025999,2]
[345245608,1734114647574,-500.0,0.00025999,2]
[345245609,1734114647584,-500.0,0.00025999,2]
[345245610,1734114647594,-500.0,0.00025999,2]
[345245611,1734114647603,-500.0,0.00025999,2]
[345245612,1734114647613,-460.47710982,0.00025999,2]
[345245613,1734114647623,-500.0,0.00025999,2]
[345245614,1734114647632,-500.0,0.00025999,2]
[345245615,1734114647644,-500.0,0.00025999,2]
[345245616,1734114647653,-500.0,0.00025999,2]
[345245617,1734114647663,-500.0,0.00025999,2]
[345245618,1734114647672,-500.0,0.00025999,2]
[345245619,1734114647682,-500.0,0.00025999,2]
[345245620,1734114647692,-236232.1379887,0.00026,30]
[345245621,1734114647836,-20999.99999966,0.00026,30]
[345245622,1734114647850,-3677.32391951,0.00026,2]
[345245623,1734114647860,-587.0,0.00026046,2]
[345245624,1734114647869,-157.78226294,0.000261,60]
[345245625,1734114647879,-2049.576474,0.00026224,2]
[345245626,1734114647891,-660.0,0.00026384,2]
[345245627,1734114647901,-2049.576474,0.00026549,2]
[345245628,1734114647910,-10265.58817291,0.000266,2]
[345245634,1734115029150,230.635628,0.00013973,2]
[345245691,1734115832882,-230.635628,0.00020447,2]
[345245693,1734115832891,-221.00340293,0.000219,2]
[345245695,1734115832900,-160.0,0.00022,2]
[345245697,1734115832910,-174.290669,0.00023705,2]
[345245699,1734115832919,-209.34408,0.00023936,2]
[345245701,1734115832928,-525.9142776,0.0002409,2]
[345245703,1734115832937,-265.412275,0.00025064,2]
[345245705,1734115832946,-300.0,0.00025078,2]
[345245707,1734115832955,-300.0,0.00025078,2]
[345245709,1734115832964,-24900.0,0.00025079,2]
[345245711,1734115832974,-9308.90897233,0.00026322,2]
[345245713,1734115832983,-152.0,0.00026428,2]
[345245715,1734115832992,-819.8305896,0.000265,2]
[345245717,1734115833002,-3006.74704336,0.000265,4]
[345245719,1734115833012,-219.04691001,0.00026573,2]
[345245721,1734115833021,-160.07666823,0.00026573,2]
[345245723,1734115833030,-500.0,0.00026573,2]
[345245725,1734115833042,-188.438,0.00026598,13]
[345245727,1734115833052,-1143.61855738,0.00026599,2]
[345245729,1734115833062,-500.0,0.00026599,2]
[345245731,1734115833072,-500.0,0.00026599,2]
[345245733,1734115833082,-500.0,0.00026599,2]
[345245735,1734115833092,-500.0,0.00026599,2]
[345245737,1734115833101,-500.0,0.00026599,2]
[345245739,1734115833111,-500.0,0.00026599,2]
[345245741,1734115833120,-500.0,0.00026599,2]
[345245743,1734115833130,-384.80560575,0.00026599,2]
[345245745,1734115833139,-500.0,0.00026599,2]
[345245747,1734115833149,-500.0,0.00026599,2]
[345245749,1734115833158,-444.63353743,0.00026599,2]
[345245751,1734115833168,-500.0,0.00026599,2]
[345245753,1734115833178,-500.0,0.00026599,2]
[345245755,1734115833189,-500.0,0.00026599,2]
[345245757,1734115833199,-500.0,0.00026599,2]
[345245759,1734115833208,-500.0,0.00026599,2]
[345245761,1734115833217,-500.0,0.00026599,2]
[345245763,1734115833227,-196.04771098,0.00026599,2]
[345245765,1734115833237,-500.0,0.00026599,2]
[345245767,1734115833247,-500.0,0.00026599,2]
[345245769,1734115833256,-500.0,0.00026599,2]
[345245771,1734115833266,-500.0,0.00026599,2]
[345245773,1734115833275,-500.0,0.00026599,2]
[345245775,1734115833285,-500.0,0.00026599,2]
[345245777,1734115833298,-500.0,0.00026599,2]
[345245778,1734115833307,-500.0,0.00026599,2]
[345245779,1734115833316,-500.0,0.00026599,2]
[345245781,1734115833326,-500.0,0.00026599,2]
[345245782,1734115833335,-500.0,0.00026599,2]
[345245785,1734115833345,-500.0,0.00026599,2]
[345245787,1734115833354,-500.0,0.00026599,2]
[345245789,1734115833364,-500.0,0.00026599,2]
[345245791,1734115833373,-500.0,0.00026599,2]
[345245793,1734115833384,-500.0,0.00026599,2]
[345245795,1734115833394,-500.0,0.00026599,2]
[345245797,1734115833403,-500.0,0.00026599,2]
[345245799,1734115833412,-500.0,0.00026599,2]
[345245801,1734115833422,-500.0,0.00026599,2]
[345245803,1734115833431,-500.0,0.00026599,2]
[345245805,1734115833440,-500.0,0.00026599,2]
[345245807,1734115833450,-500.0,0.00026599,2]
[345245809,1734115833459,-500.0,0.00026599,2]
[345245811,1734115833469,-500.0,0.00026599,2]
[345245813,1734115833479,-468.76760089,0.00026599,2]
[345245815,1734115833489,-500.0,0.00026599,2]
[345245829,1734115833615,-500.0,0.00026599,2]
[345245831,1734115833626,-500.0,0.00026599,2]
[345245833,1734115833637,-500.0,0.00026599,2]
[345245835,1734115833646,-500.0,0.00026599,2]
[345245837,1734115833656,-500.0,0.00026599,2]
[345245839,1734115833665,-500.0,0.00026599,2]
[345245841,1734115833675,-500.0,0.00026599,2]
[345245843,1734115833685,-500.0,0.00026599,2]
[345245845,1734115833695,-500.0,0.00026599,2]
[345245847,1734115833704,-450.0,0.00026599,2]
[345245849,1734115833714,-500.0,0.00026599,2]
[345245851,1734115833723,-500.0,0.00026599,2]
[345245853,1734115833733,-500.0,0.00026599,2]
[345245855,1734115833743,-500.0,0.00026599,2]
[345245857,1734115833752,-500.0,0.00026599,2]
[345245859,1734115833761,-500.0,0.00026599,2]
[345245861,1734115833771,-500.0,0.00026599,2]
[345245863,1734115833780,-500.0,0.00026599,2]
[345245865,1734115833790,-500.0,0.00026599,2]
[345245867,1734115833800,-164018.94736971,0.000266,2]
[345245869,1734115833809,-205.68,0.000266,14]
[345245871,1734115833819,-819.8305896,0.00026693,2]
[345245873,1734115833828,-819.8305896,0.00026885,2]
[345245875,1734115833837,-230.635628,0.00026921,2]
[345245877,1734115833847,-6357.53883705,0.00027,6]
[345245879,1734115833857,-819.8305896,0.00027078,2]
[345245881,1734115833866,-420.0,0.00027166,2]
[345245883,1734115833875,-500.0,0.00027199,2]
[345245885,1734115833885,-185.52869542,0.00027199,2]
[345245887,1734115833896,-249.76686851,0.00027199,2]
[345245889,1734115833905,-500.0,0.00027199,2]
[345245891,1734115833915,-200.61790879,0.00027199,2]
[345245893,1734115833925,-131573.24785893,0.000272,2]
[345245895,1734115833934,-819.8305896,0.0002727,2]
[345245897,1734115833944,-104992.65601194,0.00027297,2]
[345246040,1734115838757,-1178.16777451,0.00027297,2]
[345246043,1734115838818,-8090.3674249,0.00027297,2]
[345246044,1734115838832,-3919.44963918,0.00027297,2]
[345246046,1734115838846,-17397.14338624,0.00027297,2]
[345246123,1734115840810,-1992.6048334,0.00027297,2]
[345246126,1734115840822,-1440.75456979,0.00027297,2]
[345246128,1734115840834,-318.80520717,0.00027297,2]
[345246137,1734115840912,-665.85,0.00027297,2]
[345246139,1734115840923,-345.70921132,0.00027297,2]
[345246246,1734115846660,-62355.45651986,0.00027297,2]
[345246247,1734115846669,-35840.59767942,0.00027297,2]
[345246249,1734116018759,228.796287,0.00013973,2]
[345246298,1734117031928,-308.85305992,0.00020347,2]
[345246299,1734117031939,-495.52325269,0.00020347,2]
[345246300,1734117031950,-228.796287,0.00020447,2]
[345246301,1734117031959,-112.93078777,0.00025341,2]
[345246368,1734117037766,-64.39098593,0.00025341,2]
[345246369,1734117037776,-300.0,0.00026005,2]
[345246370,1734117037786,-300.0,0.00026005,2]
[345246371,1734117037795,-4159.97674342,0.00026006,2]
[345246372,1734117037814,-2169.89484027,0.00026006,2]
[345246373,1734117037826,-2574.27470498,0.00026006,2]
[345246378,1734117039839,-831.80088519,0.00026006,2]
[345246379,1734117039851,-1160.85712796,0.00026006,2]
[345246380,1734117039863,-442.16854155,0.00026006,2]
[345246381,1734117039874,-11537.94627771,0.00026006,2]
[345246400,1734117045804,-2023.08087892,0.00026006,2]
[345246401,1734117045815,-195.01133,0.00026133,2]
[345246402,1734117045824,-320.4312846,0.00026341,2]
[345246403,1734117045834,-375.9748117,0.00026478,2]
[345246404,1734117045844,-154.4692161,0.00026478,2]
[345246405,1734117045854,-491.8226511,0.00026478,2]
[345246406,1734117045864,-153.0389248,0.00026478,2]
[345246407,1734117045873,-153.0389248,0.00026478,2]
[345246408,1734117045883,-228.796287,0.00026921,2]
[345246409,1734117045893,-2464.86014,0.00027297,7]
[345246410,1734117045904,-2464.86014,0.00027297,7]
[345246411,1734117045918,-151.0,0.000273,17]
[345246412,1734117045928,-188.439,0.000273,16]
[345246413,1734117045938,-351.4727524,0.0002737,2]
[345246414,1734117045948,-351.4727524,0.0002737,2]
[345246415,1734117045958,-351.4727524,0.0002737,2]
[345246416,1734117045967,-351.4727524,0.0002737,2]
[345246417,1734117045977,-158.6200541,0.0002737,2]
[345246418,1734117045990,-416.8530661,0.00027373,2]
[345246419,1734117046000,-151.73518089,0.00027373,2]
[345246420,1734117046010,-500.0,0.00027393,2]
[345246421,1734117046020,-244.00530122,0.00027393,2]
[345246422,1734117046031,-160.51483749,0.00027393,2]
[345246423,1734117046040,-241.87676009,0.00027393,2]
[345246424,1734117046050,-500.0,0.00027393,2]
[345246425,1734117046060,-500.0,0.00027393,2]
[345246426,1734117046069,-500.0,0.00027393,2]
[345246427,1734117046078,-24275.6547211,0.00027394,2]
[345246429,1734117135209,206.261188,0.00013973,2]
[345246450,1734117704153,313.74712519,0.00020147,2]
[345246451,1734117720107,1400.03044485,0.00020222,2]
[345246513,1734118118262,14653.26129792,0.0001999,2]
[345246566,1734118232299,-206.261188,0.00020447,2]
[345246569,1734118232310,-402.93312002,0.000236,2]
[345246571,1734118232320,-509.40628979,0.00024,2]
[345246573,1734118232330,-455.69668144,0.00024425,2]
[345246770,1734118238043,-145.36282196,0.00024425,2]
[345246772,1734118238053,-195.01133,0.0002455,2]
[345246774,1734118238064,-484.75042099,0.00024951,2]
[345246776,1734118238074,-300.0,0.00025847,2]
[345246778,1734118238084,-8170.03556302,0.00025848,2]
[345246780,1734118238096,-480.02913384,0.00025848,2]
[345246951,1734118240059,-851.5439091,0.00025848,2]
[345251808,1734118292769,196.18211,0.00013973,2]
[345257680,1734118562196,507.0,0.000256,60]
[345257696,1734119147063,298.0,0.000256,60]
[345257701,1734119389652,210.863061,0.00013973,2]
[345257742,1734119432227,-155.06823002,0.00020447,2]
[345257744,1734119432238,-210.863061,0.00020447,2]
[345257746,1734119432247,-156.06867021,0.00021469,2]
[345257748,1734119432258,-184.20481904,0.00022492,2]
[345257750,1734119432268,-1139.6244399,0.00022875,2]
[345257752,1734119432277,-651.1557781,0.0002289,2]
[345257754,1734119432287,-300.0,0.00023765,2]
[345257756,1734119432297,-300.0,0.00023765,2]
[345257758,1734119432307,-3737.85422029,0.00023766,2]
[345257774,1734119432451,-880.84777891,0.00023766,2]
[345258202,1734119438209,-174.763964,0.00023109,2]
[345258204,1734119438219,-425.22402403,0.00023766,2]
[345258311,1734119440400,-19856.07397677,0.00023766,2]
[345258313,1734119440410,-175.338553,0.00023835,2]
[345258315,1734119440419,-172.0,0.00024,2]
[345258317,1734119440430,-500.0,0.00024007,2]
[345258319,1734119440439,-500.0,0.00024007,2]
[345258321,1734119440448,-500.0,0.00024007,2]
[345258323,1734119440458,-500.0,0.00024007,2]
[345258325,1734119440468,-500.0,0.00024007,2]
[345258327,1734119440477,-261.74337474,0.00024007,2]
[345258329,1734119440486,-500.0,0.00024007,2]
[345258330,1734119440495,-500.0,0.00024007,2]
[345258332,1734119440505,-500.0,0.00024007,2]
[345258334,1734119440515,-500.0,0.00024007,2]
[345258336,1734119440525,-621.5088701,0.00024007,2]
[345258338,1734119440534,-500.0,0.00024007,2]
[345258340,1734119440543,-500.0,0.00024007,2]
[345258342,1734119440553,-500.0,0.00024007,2]
[345258344,1734119440562,-500.0,0.00024007,2]
[345258345,1734119440572,-500.0,0.00024007,2]
[345258346,1734119440582,-500.0,0.00024007,2]
[345258347,1734119440595,-500.0,0.00024007,2]
[345258348,1734119440604,-500.0,0.00024007,2]
[345258349,1734119440614,-500.0,0.00024007,2]
[345258350,1734119440623,-500.0,0.00024007,2]
[345258351,1734119440632,-500.0,0.00024007,2]
[345258352,1734119440642,-500.0,0.00024007,2]
[345258353,1734119440651,-500.0,0.00024007,2]
[345258354,1734119440661,-500.0,0.00024007,2]
[345258355,1734119440671,-500.0,0.00024007,2]
[345258356,1734119440680,-500.0,0.00024007,2]
[345258357,1734119440690,-500.0,0.00024007,2]
[345258358,1734119440699,-500.0,0.00024007,2]
[345258359,1734119440709,-500.0,0.00024007,2]
[345258360,1734119440718,-500.0,0.00024007,2]
[345258361,1734119440727,-500.0,0.00024007,2]
[345258362,1734119440737,-500.0,0.00024007,2]
[345258363,1734119440746,-500.0,0.00024007,2]
[345258364,1734119440755,-500.0,0.00024007,2]
[345258365,1734119440765,-500.0,0.00024007,2]
[345258366,1734119440775,-500.0,0.00024007,2]
[345258367,1734119440784,-500.0,0.00024007,2]
[345258368,1734119440793,-500.0,0.00024007,2]
[345258369,1734119440803,-500.0,0.00024007,2]
[345258370,1734119440813,-500.0,0.00024007,2]
[345258371,1734119440822,-218.75606664,0.00024007,2]
[345258372,1734119440831,-500.0,0.00024007,2]
[345258373,1734119440841,-500.0,0.00024007,2]
[345258374,1734119440851,-500.0,0.00024007,2]
[345258375,1734119440861,-500.0,0.00024007,2]
[345258376,1734119440870,-500.0,0.00024007,2]
[345258377,1734119440879,-500.0,0.00024007,2]
[345258378,1734119440889,-500.0,0.00024007,2]
[345258379,1734119440898,-500.0,0.00024007,2]
[345258380,1734119440908,-500.0,0.00024007,2]
[345258381,1734119440917,-500.0,0.00024007,2]
[345258382,1734119440927,-500.0,0.00024007,2]
[345258383,1734119440936,-500.0,0.00024007,2]
[345258384,1734119440945,-500.0,0.00024007,2]
[345258385,1734119440954,-500.0,0.00024007,2]
[345258386,1734119440964,-500.0,0.00024007,2]
[345258387,1734119441087,-500.0,0.00024007,2]
[345258388,1734119441098,-500.0,0.00024007,2]
[345258389,1734119441108,-500.0,0.00024007,2]
[345258390,1734119441119,-500.0,0.00024007,2]
[345258391,1734119441129,-500.0,0.00024007,2]
[345258392,1734119441138,-500.0,0.00024007,2]
[345258393,1734119441148,-179.37101268,0.00024007,2]
[345258394,1734119441157,-500.0,0.00024007,2]
[345258395,1734119441167,-63919.57301371,0.00024008,2]
[345258444,1734119443223,-684.74293365,0.00024008,2]
[345258742,1734119446043,-46166.46828075,0.00024008,2]
[345258744,1734119446053,-36889.75644015,0.00024008,2]
[345258746,1734119446063,-2614.0609885,0.0002401,2]
[345258748,1734119446072,-219.4769074,0.00024073,2]
[345258750,1734119446081,-500.0,0.00024073,2]
[345258752,1734119446091,-227.16256999,0.00024073,2]
[345258754,1734119446101,-502.82013521,0.00024073,2]
[345258756,1734119446111,-500.0,0.00024073,2]
[345258759,1734119446121,-500.0,0.00024073,2]
[345258761,1734119446131,-528.2883319,0.00024345,2]
[345258762,1734119446140,-500.0,0.00024621,2]
[345258764,1734119446149,-153.83261744,0.00024621,2]
[345258766,1734119446160,-380.0,0.00024658,2]
[345258768,1734119446170,-151.0,0.00024658,7]
[345258771,1734119446179,-246.396278,0.00024658,7]
[345258773,1734119446188,-151.0,0.00024658,7]
[345258775,1734119446198,-151.0,0.00024658,7]
[345258776,1734119446207,-151.0,0.00024658,7]
[345258778,1734119446217,-151.0,0.00024658,7]
[345258780,1734119446226,-500.0,0.00024658,2]
[345258782,1734119446235,-500.0,0.00024658,2]
[345258784,1734119446245,-500.0,0.00024658,2]
[345258787,1734119446255,-500.0,0.00024658,2]
[345258789,1734119446266,-500.0,0.00024658,2]
[345258790,1734119446275,-500.0,0.00024658,2]
[345258793,1734119446285,-500.0,0.00024658,2]
[345258794,1734119446294,-500.0,0.00024658,2]
[345258797,1734119446305,-500.0,0.00024658,2]
[345258799,1734119446315,-500.0,0.00024658,2]
[345258801,1734119446325,-500.0,0.00024658,2]
[345258803,1734119446335,-500.0,0.00024658,2]
[345258805,1734119446344,-500.0,0.00024658,2]
[345258807,1734119446354,-500.0,0.00024658,2]
[345258809,1734119446364,-500.0,0.00024658,2]
[345258811,1734119446374,-500.0,0.00024658,2]
[345258813,1734119446384,-500.0,0.00024658,2]
[345258815,1734119446394,-500.0,0.00024658,2]
[345258817,1734119446403,-500.0,0.00024658,2]
[345258819,1734119446413,-500.0,0.00024658,2]
[345258821,1734119446422,-500.0,0.00024658,2]
[345258823,1734119446432,-500.0,0.00024658,2]
[345258825,1734119446442,-500.0,0.00024658,2]
[345258827,1734119446451,-500.0,0.00024658,2]
[345258829,1734119446462,-500.0,0.00024658,2]
[345258831,1734119446471,-500.0,0.00024658,2]
[345258833,1734119446482,-500.0,0.00024658,2]
[345258835,1734119446491,-500.0,0.00024658,2]
[345258837,1734119446500,-500.0,0.00024658,2]
[345258840,1734119446512,-500.0,0.00024658,2]
[345258842,1734119446526,-500.0,0.00024658,2]
[345258844,1734119446535,-500.0,0.00024658,2]
[345258845,1734119446544,-500.0,0.00024658,2]
[345258848,1734119446554,-500.0,0.00024658,2]
[345258849,1734119446563,-500.0,0.00024658,2]
[345258851,1734119446573,-500.0,0.00024658,2]
[345258853,1734119446582,-500.0,0.00024658,2]
[345258855,1734119446594,-500.0,0.00024658,2]
[345258857,1734119446604,-500.0,0.00024658,2]
[345258860,1734119446614,-500.0,0.00024658,2]